bitfinex-derivatives/quotes_BTCF0:USTF0_20250313
["timestamp","ask_amount","ask_price","bid_price","bid_amount"]
[1741840371848,0.2551843,83452.0,83451.0,0.01286836]
[1741840372034,0.2551843,83452.0,83451.0,0.08096836]
[1741840372941,0.2591843,83452.0,83451.0,0.08096836]
[1741840376443,0.27373739,83452.0,83451.0,0.08096836]
[1741840378737,0.33200541,83452.0,83451.0,0.08096836]
[1741840381240,0.33198059,83452.0,83451.0,0.08096836]
[1741840382435,0.33199428,83452.0,83451.0,0.08096836]
[1741840382640,0.54607115,83452.0,83451.0,0.08096836]
[1741840383240,0.53152919,83452.0,83451.0,0.08096836]
[1741840383641,0.52752919,83452.0,83451.0,0.08096836]
[1741840383945,0.53152919,83452.0,83451.0,0.08096836]
[1741840384452,0.53252919,83452.0,83451.0,0.08096836]
[1741840385252,0.50856843,83452.0,83451.0,0.08096836]
[1741840385445,0.51356843,83452.0,83451.0,0.08096836]
[1741840385647,0.47756843,83452.0,83451.0,0.08096836]
[1741840385949,0.43816843,83452.0,83451.0,0.08096836]
[1741840386157,0.44316843,83452.0,83451.0,0.08096836]
[1741840386542,0.51166843,83452.0,83451.0,0.08096836]
[1741840386737,0.29759156,83452.0,83451.0,0.08096836]
[1741840387138,0.22909156,83452.0,83451.0,0.08096836]
[1741840387553,0.22409156,83452.0,83451.0,0.08096836]
[1741840387750,0.23009156,83452.0,83451.0,0.08096836]
[1741840388143,0.2307616,83452.0,83451.0,0.08096836]
[1741840388444,0.2940616,83452.0,83451.0,0.08096836]
[1741840388643,0.31807805,83452.0,83451.0,0.08096836]
[1741840388844,0.28337805,83452.0,83451.0,0.08096836]
[1741840392251,0.29795793,83452.0,83451.0,0.08096836]
[1741840392951,0.29795793,83452.0,83451.0,0.05399451]
[1741840393147,0.17810703,83452.0,83447.0,0.01294923]
[1741840393348,0.1198566,83448.0,83447.0,0.01294923]
[1741840393545,0.16464469,83448.0,83447.0,0.01294923]
[1741840393747,0.16616165,83448.0,83447.0,0.01294923]
[1741840394258,0.20136165,83448.0,83447.0,0.01294923]
[1741840394448,0.23181257,83448.0,83447.0,0.01294923]
[1741840394848,0.23581257,83448.0,83447.0,0.01294923]
[1741840395047,0.23981257,83448.0,83447.0,0.01294923]
[1741840396954,0.23981257,83448.0,83447.0,0.04944923]
[1741840397353,0.29808059,83448.0,83447.0,0.04944923]
[1741840397653,0.28344091,83448.0,83447.0,0.04944923]
[1741840398241,0.26442446,83448.0,83447.0,0.08424923]
[1741840399647,0.24493808,83448.0,83447.0,0.08424923]
[1741840399846,0.20973808,83448.0,83447.0,0.08424923]
[1741840400448,0.20973808,83448.0,83447.0,0.20410733]
[1741840400666,0.08988148,83448.0,83447.0,0.33410733]
[1741840401050,0.20973808,83448.0,83447.0,0.35410733]
[1741840401251,0.07770249,83448.0,83447.0,0.35410733]
[1741840401451,0.20891198,83448.0,83447.0,0.35410733]
[1741840401653,0.07770249,83448.0,83447.0,0.50410733]
[1741840402056,0.19755909,83448.0,83447.0,0.50410733]
[1741840402362,0.19755909,83448.0,83447.0,0.35410733]
[1741840402550,0.19755909,83448.0,83447.0,0.50410733]
[1741840402752,0.07770249,83448.0,83447.0,0.50410733]
[1741840403260,0.19755909,83448.0,83447.0,0.50410733]
[1741840403763,0.13929107,83448.0,83447.0,0.36410733]
[1741840403960,0.13929107,83448.0,83447.0,0.35410733]
[1741840404263,0.1268566,83448.0,83447.0,0.35410733]
[1741840404457,0.1268566,83448.0,83447.0,0.33410733]
[1741840404661,0.1268566,83448.0,83447.0,0.35410733]
[1741840405566,0.13786661,83448.0,83447.0,0.35410733]
[1741840406062,0.02939163,83448.0,83447.0,0.35410733]
[1741840406256,0.02939163,83448.0,83447.0,0.50410733]
[1741840406463,0.14924823,83448.0,83447.0,0.35410733]
[1741840406648,0.13823822,83448.0,83447.0,0.35410733]
[1741840406857,0.14923156,83448.0,83447.0,0.35410733]
[1741840407355,0.02937496,83448.0,83447.0,0.50410733]
[1741840407551,0.00215983,83450.0,83449.0,0.1198552]
[1741840407750,0.1198485,83454.0,83449.0,0.1198552]
[1741840407751,0.1198485,83454.0,83449.0,0.37]
[1741840407968,0.22702662,83454.0,83453.0,0.1198494]
[1741840408168,0.22702662,83454.0,83453.0,0.3898494]
[1741840408552,0.22702662,83454.0,83453.0,0.40162928]
[1741840408757,0.22702612,83454.0,83453.0,0.40162928]
[1741840409566,0.23002612,83454.0,83453.0,0.39162928]
[1741840409763,0.23002612,83454.0,83453.0,0.42162928]
[1741840410163,0.11017812,83454.0,83453.0,1.11810928]
[1741840410369,0.11217812,83454.0,83453.0,1.11810928]
[1741840410568,0.11517812,83454.0,83453.0,0.96810928]
[1741840411058,0.11617812,83454.0,83453.0,0.96810928]
[1741840411661,0.009,83454.0,83453.0,1.11810928]
[1741840413364,0.009,83454.0,83453.0,0.84102928]
[1741840413560,0.009,83454.0,83453.0,0.96810928]
[1741840415274,0.0458,83454.0,83453.0,0.96810928]
[1741840415772,0.0821,83454.0,83453.0,0.96810928]
[1741840428470,0.0458,83454.0,83453.0,1.11810928]
[1741840430174,0.0458,83454.0,83453.0,0.96810928]
[1741840430375,0.0458,83454.0,83453.0,1.11810928]
[1741840430576,0.0458,83454.0,83453.0,0.96810928]
[1741840432881,0.009,83454.0,83453.0,0.96810928]
[1741840437390,0.0789,83454.0,83453.0,0.96810928]
[1741840437586,0.0789,83454.0,83453.0,0.84102928]
[1741840437798,0.0789,83454.0,83453.0,0.96578928]
[1741840439584,0.198748,83454.0,83453.0,0.96558928]
[1741840440187,0.198748,83454.0,83453.0,0.7094]
[1741840440494,0.198748,83454.0,83453.0,0.80388]
[1741840440892,0.198748,83454.0,83453.0,0.6794]
[1741840441192,0.198748,83454.0,83449.0,0.35820733]
[1741840441193,0.1198538,83450.0,83449.0,0.35820733]
[1741840441395,0.1198538,83450.0,83449.0,0.19280733]
[1741840441579,0.1198538,83450.0,83447.0,0.01294923]
[1741840441781,0.1198566,83448.0,83447.0,0.01294923]
[1741840443591,0.1218566,83448.0,83447.0,0.01294923]
[1741840445082,0.1337566,83448.0,83447.0,0.01294923]
[1741840445281,0.1198595,83446.0,83445.0,0.01386591]
[1741840446591,0.1218595,83446.0,83445.0,0.01386591]
[1741840447496,0.1238595,83446.0,83445.0,0.01386591]
[1741840450203,0.1238595,83446.0,83445.0,0.08506591]
[1741840455316,0.1337595,83446.0,83445.0,0.08506591]
[1741840455604,0.24053592,83446.0,83445.0,0.08506591]
[1741840457624,0.23063592,83446.0,83445.0,0.20492681]
[1741840459607,0.1238595,83446.0,83445.0,0.20492681]
[1741840461699,0.1238595,83446.0,83445.0,0.08506591]
[1741840461902,0.1238595,83446.0,83445.0,0.20492681]
[1741840462305,0.1238595,83446.0,83445.0,0.08506591]
[1741840462511,0.1243595,83446.0,83445.0,0.08506591]
[1741840462906,0.1343595,83446.0,83445.0,0.08506591]
[1741840464404,0.1328595,83446.0,83445.0,0.08506591]
[1741840466811,0.1308595,83446.0,83445.0,0.08506591]
[1741840467003,0.1318595,83446.0,83445.0,0.08506591]
[1741840467900,0.1218595,83446.0,83445.0,0.08506591]
[1741840468105,0.1208595,83446.0,83445.0,0.08506591]
[1741840468410,0.1238595,83446.0,83445.0,0.08506591]
[1741840468612,0.1258595,83446.0,83445.0,0.08506591]
[1741840469699,0.1263595,83446.0,83445.0,0.08506591]
[1741840469903,0.14079045,83446.0,83445.0,0.08506591]
[1741840470304,0.15079045,83446.0,83445.0,0.08506591]
[1741840471612,0.0599304,83445.0,83439.0,0.0343]
[1741840471818,0.1198681,83440.0,83439.0,0.0343]
[1741840472011,0.13429905,83440.0,83439.0,0.0343]
[1741840472605,0.1198696,83439.0,83426.0,0.01434363]
[1741840472808,0.1198882,83426.0,83421.0,0.57143556]
[1741840473016,0.1199299,83397.0,83396.0,9e-08]
[1741840473215,0.01434445,83397.0,83378.0,0.62300392]
[1741840473416,0.01434445,83397.0,83386.0,0.00064]
[1741840473417,0.1199443,83387.0,83386.0,0.00064]
[1741840473615,0.13529571,83390.0,83379.0,0.13040831]
[1741840473616,0.1276,83390.0,83379.0,0.13040831]
[1741840473817,0.1199558,83381.0,83380.0,0.13040831]
[1741840474017,0.1199558,83381.0,83378.0,0.62300392]
[1741840474018,0.1199511,83383.0,83379.0,0.13040831]
[1741840474216,0.01126224,83387.0,83379.0,0.13040831]
[1741840474217,0.01126224,83387.0,83385.0,0.1199457]
[1741840474417,0.2398662,83395.0,83394.0,0.43108852]
[1741840474619,0.2398662,83395.0,83394.0,0.56149683]
[1741840475116,0.1199334,83395.0,83394.0,0.56149683]
[1741840475715,0.1249334,83395.0,83394.0,0.56149683]
[1741840476709,0.1259334,83395.0,83394.0,0.56149683]
[1741840477113,0.13698155,83395.0,83394.0,0.56149683]
[1741840477315,0.14098155,83395.0,83394.0,0.56149683]
[1741840477511,0.15237191,83395.0,83394.0,0.56149683]
[1741840478509,0.1199443,83387.0,83386.0,0.0707]
[1741840478712,0.14238281,83387.0,83386.0,0.003741]
[1741840478913,0.1199529,83381.0,83380.0,0.50353661]
[1741840479112,0.13100105,83381.0,83380.0,0.63334492]
[1741840479321,0.14239141,83381.0,83380.0,0.46666621]
[1741840479713,0.119963,83374.0,83373.0,0.0006]
[1741840479913,0.1199731,83367.0,83366.0,0.0006]
[1741840480222,0.1799574,83368.0,83367.0,0.13040831]
[1741840480416,0.1199817,83361.0,83360.0,9.063e-05]
[1741840480616,0.1199817,83361.0,83360.0,0.13049894]
[1741840481615,0.1199817,83361.0,83330.0,0.35734842]
[1741840481616,0.0353,83366.0,83332.0,0.47285076]
[1741840481810,0.1199976,83350.0,83349.0,0.05148804]
[1741840482112,0.1200047,83346.0,83344.0,0.0346]
[1741840482316,0.0600013,83347.0,83344.0,0.0346]
[1741840482518,0.1200047,83345.0,83344.0,0.0246]
[1741840482921,0.1200047,83345.0,83344.0,0.07608804]
[1741840483525,0.13188481,83347.0,83346.0,0.1200033]
[1741840483715,0.1200033,83346.0,83345.0,0.05148804]
[1741840484220,0.1200033,83346.0,83345.0,0.17149274]
[1741840484425,0.1200033,83346.0,83345.0,0.05148804]
[1741840485217,0.1200033,83346.0,83345.0,0.08708804]
[1741840486916,0.1200033,83346.0,83345.0,0.0356]
[1741840487112,0.1200033,83346.0,83345.0,0.08708804]
[1741840487315,0.1120033,83346.0,83345.0,0.08708804]
[1741840487621,0.1120033,83346.0,83345.0,0.20709274]
[1741840487828,0.12012161,83347.0,83346.0,0.1200033]
[1741840488024,0.12012161,83347.0,83346.0,0.24209134]
[1741840488624,0.10621716,83364.0,83356.0,0.1199889]
[1741840488929,0.05490904,83364.0,83357.0,0.1199874]
[1741840489226,0.1199858,83359.0,83358.0,0.01555477]
[1741840489427,0.05490904,83364.0,83363.0,0.1199788]
[1741840489621,0.14162288,83369.0,83368.0,0.1199716]
[1741840489927,0.14162288,83369.0,83368.0,0.2495716]
[1741840490426,0.26159308,83369.0,83368.0,0.2495716]
[1741840490822,0.26159308,83369.0,83368.0,0.1199716]
[1741840491024,0.1799476,83375.0,83374.0,0.1199616]
[1741840491224,0.01214249,83376.0,83375.0,0.1199616]
[1741840491429,0.1199601,83376.0,83375.0,0.1199616]
[1741840492432,0.1199601,83376.0,83375.0,0.037]
[1741840492614,0.00017992,83377.0,83376.0,0.1199601]
[1741840492818,0.00017992,83377.0,83376.0,0.1534601]
[1741840493331,0.00017992,83377.0,83376.0,0.1904601]
[1741840494818,0.12013862,83377.0,83376.0,0.1904601]
[1741840495430,0.00017992,83377.0,83376.0,0.1904601]
[1741840498431,2e-08,83377.0,83376.0,0.4804601]
[1741840499938,2e-08,83377.0,83376.0,0.6304601]
[1741840500632,0.14162288,83397.0,83396.0,0.1199314]
[1741840500830,0.14162288,83397.0,83396.0,0.2495714]
[1741840502526,0.14162288,83397.0,83396.0,0.4095714]
[1741840503124,0.17792129,83405.0,83404.0,0.1199199]
[1741840503931,0.17792129,83405.0,83404.0,0.4054199]
[1741840504234,0.1199019,83417.0,83413.0,0.1199069]
[1741840504436,0.1553019,83417.0,83416.0,0.1199026]
[1741840504640,0.0354,83417.0,83416.0,0.1199026]
[1741840504835,0.1553012,83417.0,83416.0,0.1199026]
[1741840505831,0.0354,83417.0,83416.0,0.1199026]
[1741840506232,0.1553012,83417.0,83416.0,0.1199026]
[1741840508239,0.0354,83417.0,83416.0,0.1199026]
[1741840508839,0.0354,83417.0,83416.0,0.2699026]
[1741840509138,0.0599407,83431.0,83424.0,0.1198911]
[1741840509139,0.119888,83427.0,83424.0,0.1198911]
[1741840509332,0.0344,83426.0,83424.0,0.1198911]
[1741840509531,0.0686,83426.0,83424.0,0.1198911]
[1741840509732,0.0342,83426.0,83424.0,0.1198911]
[1741840509937,0.1540887,83426.0,83424.0,0.1885911]
[1741840510134,0.15446962,83425.0,83424.0,0.1885911]
[1741840510440,0.18866962,83425.0,83424.0,0.1885911]
[1741840511638,0.06877992,83425.0,83424.0,0.1885911]
[1741840511834,0.18866962,83425.0,83424.0,0.1885911]
[1741840512147,0.03437992,83425.0,83424.0,0.2185911]
[1741840512440,0.0348,83429.0,83428.0,0.1198854]
[1741840513947,0.00017981,83437.0,83436.0,0.1198739]
[1741840514252,0.03537981,83437.0,83436.0,0.1198739]
[1741840515448,0.00017981,83437.0,83436.0,0.1548739]
[1741840515637,0.00017981,83437.0,83436.0,0.1748739]
[1741840515843,0.00017981,83437.0,83436.0,0.1548739]
[1741840516036,0.00017981,83437.0,83436.0,0.2148739]
[1741840516242,0.00017981,83437.0,83436.0,0.1548739]
[1741840516546,0.12005221,83437.0,83436.0,0.1198739]
[1741840516743,0.00017981,83437.0,83436.0,0.1198739]
[1741840517046,0.00017981,83437.0,83436.0,0.1548739]
[1741840519844,0.07097981,83437.0,83436.0,0.1548739]
[1741840522048,0.19085221,83437.0,83436.0,0.1198739]
[1741840524041,0.07097981,83437.0,83436.0,0.1198739]
[1741840524242,0.07097981,83437.0,83436.0,0.1563739]
[1741840525845,0.19085221,83437.0,83436.0,0.1198739]
[1741840528356,0.07097981,83437.0,83436.0,0.1198739]
[1741840528651,0.07097981,83437.0,83436.0,0.1558739]
[1741840529453,0.19085221,83437.0,83436.0,0.1558739]
[1741840530562,0.07097981,83437.0,83436.0,0.1558739]
[1741840530950,0.00017981,83437.0,83436.0,0.1558739]
[1741840531353,0.07257981,83437.0,83436.0,0.1558739]
[1741840533059,0.07257981,83437.0,83436.0,0.1658739]
[1741840534148,0.19245221,83437.0,83436.0,0.1298739]
[1741840534353,0.059939,83434.0,83429.0,0.00068]
[1741840534555,0.1198839,83429.0,83421.0,1.51924]
[1741840534857,0.1199127,83409.0,83408.0,0.06885525]
[1741840535050,0.059951,83417.0,83416.0,0.1199012]
[1741840535250,0.095851,83417.0,83416.0,0.1199012]
[1741840535548,0.129951,83417.0,83416.0,0.1199012]
[1741840535760,0.14217802,83417.0,83416.0,0.1199012]
[1741840536256,0.15345119,83417.0,83416.0,0.1199012]
[1741840538149,0.38981881,83417.0,83416.0,0.1199012]
[1741840538647,0.37854564,83417.0,83416.0,0.1199012]
[1741840540758,0.179868,83411.0,83410.0,0.119906]
[1741840541056,0.0599553,83411.0,83408.0,0.00017981]
[1741840541247,0.1199443,83387.0,83386.0,0.41219966]
[1741840541446,0.1199443,83387.0,83384.0,0.1199481]
[1741840541651,0.1199472,83385.0,83384.0,0.2398954]
[1741840541851,0.0693,83386.0,83385.0,0.1199472]
[1741840542251,0.1199329,83398.0,83397.0,0.0599633]
[1741840542954,0.0961632,83400.0,83398.0,0.1199285]
[1741840542955,0.0362,83400.0,83398.0,0.1199285]
[1741840543157,0.1556184,83405.0,83404.0,0.1199199]
[1741840544361,0.1556184,83405.0,83402.0,0.0599609]
[1741840544362,0.119927,83399.0,83398.0,0.2449618]
[1741840544856,0.119927,83399.0,83398.0,0.1199218]
[1741840545354,0.155627,83399.0,83398.0,0.2398436]
[1741840546360,0.155627,83399.0,83398.0,0.1199218]
[1741840547144,0.1199299,83397.0,83396.0,0.00017981]
[1741840547348,0.13203704,83397.0,83396.0,0.00017981]
[1741840547757,0.16903704,83397.0,83396.0,0.00017981]
[1741840549053,0.16903704,83397.0,83396.0,0.12011121]
[1741840552063,0.05996,83404.0,83396.0,0.00017981]
[1741840552265,0.1199241,83402.0,83401.0,0.1199227]
[1741840552654,0.1906241,83402.0,83401.0,0.1199227]
[1741840553259,0.1906241,83402.0,83401.0,0.1570227]
[1741840553957,0.20291375,83402.0,83401.0,0.1570227]
[1741840555255,0.20291375,83402.0,83401.0,0.0371]
[1741840555655,0.20291375,83402.0,83401.0,0.1570242]
[1741840556572,0.20291375,83402.0,83401.0,0.0371]
[1741840557468,0.20291375,83402.0,83401.0,0.1570242]
[1741840557667,0.20291375,83402.0,83401.0,0.0371]
[1741840557868,0.16871375,83402.0,83401.0,0.1570242]
[1741840558062,0.16871375,83402.0,83401.0,0.2412242]
[1741840558063,0.0365,83402.0,83401.0,0.2412242]
[1741840558257,0.0365,83402.0,83401.0,0.1912242]
[1741840558856,0.1564227,83402.0,83401.0,0.1912242]
[1741840565666,0.16771737,83402.0,83401.0,0.1912242]
[1741840566168,0.1564227,83402.0,83401.0,0.0371]
[1741840566565,0.1199299,83397.0,83396.0,0.00017981]
[1741840567072,0.13123524,83397.0,83396.0,0.12011121]
[1741840567477,0.20103524,83397.0,83396.0,0.12011121]
[1741840568871,0.1897299,83397.0,83395.0,0.0352]
[1741840569076,0.1897299,83397.0,83396.0,0.1199314]
[1741840569884,0.1897299,83397.0,83396.0,0.1551314]
[1741840570570,0.24803342,83397.0,83396.0,0.0352]
[1741840570972,0.24803342,83397.0,83396.0,0.1551314]
[1741840571168,0.24803342,83397.0,83396.0,0.0352]
[1741840571368,0.24803342,83397.0,83394.0,0.1199332]
[1741840571369,0.1199328,83395.0,83394.0,0.1199332]
[1741840571569,0.1199371,83393.0,83392.0,0.1199366]
[1741840571769,0.1199371,83393.0,83392.0,0.1566366]
[1741840571968,0.1917371,83393.0,83392.0,0.1566366]
[1741840572170,0.1917371,83393.0,83392.0,0.1927366]
[1741840572863,0.0718,83393.0,83392.0,0.1927366]
[1741840573068,0.17823382,83397.0,83396.0,0.1199314]
[1741840573462,0.05830352,83397.0,83396.0,0.1199314]
[1741840573661,0.17823342,83397.0,83396.0,0.1199314]
[1741840573867,0.17823342,83397.0,83396.0,0.1570314]
[1741840574872,0.33434302,83397.0,83396.0,0.1570314]
[1741840575474,0.37064302,83397.0,83396.0,0.1570314]
[1741840576479,0.21441312,83397.0,83396.0,0.1570314]
[1741840576674,0.33434302,83397.0,83396.0,0.1570314]
[1741840577276,0.1782299,83397.0,83396.0,0.1570314]
[1741840577883,0.2129299,83397.0,83396.0,0.1570314]
[1741840580785,0.2129299,83397.0,83396.0,0.0371]
[1741840581583,0.2129299,83397.0,83396.0,0.1570314]
[1741840587981,0.2129299,83397.0,83396.0,0.0371]
[1741840592597,0.0583,83397.0,83396.0,0.4842314]
[1741840592895,0.0583,83397.0,83396.0,0.4642314]
[1741840593085,0.1782299,83397.0,83396.0,0.0743]
[1741840593286,0.1782299,83397.0,83396.0,0.1942314]
[1741840593692,0.1782299,83397.0,83396.0,0.0743]
[1741840593888,0.39264302,83397.0,83396.0,0.0743]
[1741840594092,0.39264302,83397.0,83396.0,0.1942314]
[1741840594295,0.39264302,83397.0,83396.0,0.0371]
[1741840596293,0.1199414,83389.0,83388.0,0.00017981]
[1741840596894,0.1199414,83389.0,83388.0,0.12012271]
[1741840597096,0.1564414,83389.0,83388.0,0.12012271]
[1741840599188,0.16832359,83389.0,83388.0,0.12012271]
[1741840600695,0.16832359,83389.0,83388.0,0.00017981]
[1741840601185,0.44125736,83389.0,83388.0,0.00017981]
[1741840601589,0.42937517,83389.0,83388.0,0.00017981]
[1741840602184,0.42937517,83389.0,83388.0,0.12012271]
[1741840604496,0.2147414,83389.0,83388.0,0.12012271]
[1741840605095,0.2493414,83389.0,83388.0,0.12012271]
[1741840605299,0.26107815,83389.0,83388.0,0.12012271]
[1741840610094,0.14113675,83389.0,83388.0,0.19012271]
[1741840610290,0.10653675,83389.0,83388.0,0.19012271]
[1741840611304,0.10653675,83389.0,83388.0,0.20012271]
[1741840611802,0.10653675,83389.0,83388.0,0.19012271]
[1741840612007,0.0583,83389.0,83388.0,0.23012271]
[1741840612506,0.0583,83389.0,83388.0,0.35256271]
[1741840612907,0.0583,83389.0,83388.0,0.36256271]
[1741840613495,0.0583,83389.0,83388.0,0.24012271]
[1741840613707,0.07285908,83422.0,83388.0,0.24012271]
[1741840613708,0.00017981,83406.0,83404.0,0.1199199]
[1741840613898,0.00017981,83406.0,83404.0,0.2623599]
[1741840614595,0.00017981,83406.0,83404.0,0.4115599]
[1741840615004,0.00017981,83406.0,83404.0,0.37363268]
[1741840615197,0.00017981,83406.0,83404.0,0.42363268]
[1741840615397,0.00017981,83406.0,83405.0,0.1199184]
[1741840615616,0.00017981,83406.0,83405.0,0.4544184]
[1741840615811,0.00017981,83406.0,83405.0,0.4969184]
[1741840617510,0.00017981,83406.0,83405.0,0.4769184]
[1741840618099,0.00017981,83406.0,83405.0,0.4569184]
[1741840618307,0.04297981,83406.0,83405.0,0.4769184]
[1741840618711,0.04297981,83406.0,83405.0,0.6169184]
[1741840619099,0.16289681,83406.0,83405.0,0.337]
[1741840619510,0.16289681,83406.0,83405.0,0.2945]
[1741840619809,0.16289681,83406.0,83405.0,0.1644184]
[1741840621411,0.04297981,83406.0,83405.0,0.1644184]
[1741840621711,0.04297981,83406.0,83405.0,0.3316184]
[1741840621915,0.16289681,83406.0,83405.0,0.3116184]
[1741840622115,0.16289681,83406.0,83396.0,0.41283966]
[1741840622314,0.1199299,83397.0,83396.0,0.53212656]
[1741840622516,0.1199299,83397.0,83396.0,0.65205426]
[1741840622815,0.1199299,83397.0,83396.0,0.2398546]
[1741840623013,0.1199342,83394.0,83393.0,0.1224]
[1741840623213,0.1199342,83394.0,83393.0,0.1199357]
[1741840623718,0.2088333,83395.0,83394.0,0.1199342]
[1741840624015,0.22115103,83395.0,83394.0,0.1639342]
[1741840624213,0.22115103,83395.0,83394.0,0.2083342]
[1741840624609,0.13225103,83395.0,83394.0,0.2083342]
[1741840626610,0.27492683,83395.0,83394.0,0.2083342]
[1741840626804,0.1426758,83395.0,83394.0,0.2283342]
[1741840627009,0.1426758,83395.0,83394.0,0.2383342]
[1741840627215,0.1426758,83395.0,83394.0,0.2183342]
[1741840627419,0.2626086,83395.0,83394.0,0.2183342]
[1741840628015,0.2626086,83395.0,83394.0,0.2283342]
[1741840628212,0.2626086,83395.0,83394.0,0.2183342]
[1741840629424,0.1426758,83395.0,83394.0,0.2383342]
[1741840629723,0.22694696,83395.0,83394.0,0.2183342]
[1741840631227,0.10701416,83395.0,83394.0,0.2183342]
[1741840631428,0.10701416,83395.0,83394.0,0.2383342]
[1741840631619,0.1426758,83399.0,83394.0,0.1184]
[1741840631923,0.1426758,83399.0,83398.0,0.1199285]
[1741840632128,0.1426758,83399.0,83398.0,0.6823285]
[1741840632822,0.12808777,83399.0,83398.0,1.0416376]
[1741840633019,0.12808777,83399.0,83398.0,0.8916376]
[1741840635228,0.00017981,83406.0,83405.0,0.1199184]
[1741840635424,0.00017981,83406.0,83405.0,0.4499184]
[1741840636128,0.12009681,83406.0,83405.0,0.2734]
[1741840636325,0.12009681,83406.0,83405.0,0.3933184]
[1741840637038,0.16169681,83406.0,83405.0,0.3933184]
[1741840638330,0.16169681,83406.0,83405.0,0.23]
[1741840638731,0.1199342,83394.0,83393.0,0.1652]
[1741840638919,0.1199342,83394.0,83393.0,0.3251357]
[1741840639532,0.1199342,83394.0,83393.0,0.2851357]
[1741840639833,0.1628342,83394.0,83393.0,0.2851357]
[1741840642233,0.2074342,83394.0,83393.0,0.2851357]
[1741840644032,0.2074342,83394.0,83393.0,0.1627357]
[1741840644429,0.1199414,83389.0,83388.0,0.12011851]
[1741840644626,0.1199414,83389.0,83388.0,0.14011851]
[1741840644830,0.1199414,83389.0,83388.0,0.26005771]
[1741840645736,0.2085414,83389.0,83388.0,0.26005771]
[1741840646139,0.2085414,83389.0,83388.0,0.02017981]
[1741840646335,0.2085414,83389.0,83388.0,0.01017981]
[1741840646530,0.2085414,83389.0,83388.0,0.00017981]
[1741840647243,0.21980806,83389.0,83388.0,0.00017981]
[1741840647437,0.1199587,83377.0,83376.0,0.1224]
[1741840647635,0.1199587,83377.0,83376.0,0.2423601]
[1741840648040,0.13122536,83377.0,83376.0,0.2423601]
[1741840648226,0.1199601,83376.0,83375.0,0.1651601]
[1741840648432,0.13190124,83376.0,83375.0,0.2051601]
[1741840648629,0.22310124,83376.0,83375.0,0.2051601]
[1741840648841,0.2343679,83376.0,83375.0,0.2477601]
[1741840649037,0.22242676,83376.0,83375.0,0.2477601]
[1741840650236,0.2111601,83376.0,83375.0,0.2477601]
[1741840650944,0.0912,83376.0,83375.0,0.2477601]
[1741840651837,0.0472,83376.0,83375.0,0.5077601]
[1741840652044,0.05830518,83381.0,83380.0,0.1199544]
[1741840652236,0.2113529,83381.0,83380.0,0.1199544]
[1741840655039,0.1799371,83379.0,83378.0,0.1199567]
[1741840655240,0.119963,83374.0,83373.0,1.4532219]
[1741840655443,0.119963,83374.0,83373.0,1.6150219]
[1741840655833,0.119963,83374.0,83373.0,1.5750219]
[1741840656145,0.208363,83374.0,83373.0,1.5750219]
[1741840656344,0.208363,83374.0,83373.0,1.5950219]
[1741840656734,0.21962822,83374.0,83373.0,1.5950219]
[1741840657335,0.208363,83374.0,83373.0,1.5950219]
[1741840657743,0.0443,83374.0,83373.0,1.6150219]
[1741840658533,0.0443,83374.0,83373.0,1.5950219]
[1741840659041,0.0443,83374.0,83373.0,1.6150219]
[1741840659543,0.12013101,83384.0,83383.0,0.1199501]
[1741840659941,0.1199601,83377.0,83376.0,0.1199547]
[1741840660140,0.1199601,83377.0,83376.0,0.1299547]
[1741840660638,0.1642601,83377.0,83376.0,0.1299547]
[1741840660838,0.2511601,83377.0,83376.0,0.1299547]
[1741840661842,0.26243178,83377.0,83376.0,0.1299547]
[1741840662638,0.2511601,83377.0,83376.0,0.1299547]
[1741840663347,0.2511601,83377.0,83376.0,0.1760547]
[1741840672355,0.2511601,83377.0,83376.0,0.2205547]
[1741840673149,0.2511601,83377.0,83376.0,0.1760547]
[1741840674255,0.2511601,83377.0,83376.0,0.2186547]
[1741840676045,0.1312,83377.0,83372.0,0.1224]
[1741840676249,0.1199644,83373.0,83372.0,0.2423631]
[1741840676855,0.1199644,83373.0,83372.0,0.3339631]
[1741840677057,0.22129698,83373.0,83372.0,0.3339631]
[1741840678669,0.22129698,83373.0,83372.0,0.1671631]
[1741840679363,0.23260139,83373.0,83372.0,0.1671631]
[1741840679556,0.23260139,83373.0,83372.0,0.2098631]
[1741840679863,0.23260139,83373.0,83372.0,0.0472]
[1741840680555,0.23260139,83373.0,83372.0,0.1671659]
[1741840680757,0.41121978,83373.0,83372.0,0.1671659]
[1741840682359,0.1199731,83367.0,83366.0,0.00179909]
[1741840682560,0.1199817,83361.0,83360.0,0.00014015]
[1741840682858,0.13135066,83361.0,83353.0,0.2860149]
[1741840683064,0.1199918,83354.0,83353.0,0.2854149]
[1741840683255,0.13136076,83354.0,83353.0,0.2854149]
[1741840683860,0.23099334,83354.0,83353.0,0.2854149]
[1741840684161,0.24954484,83354.0,83353.0,0.2854149]
[1741840684564,0.24954484,83354.0,83346.0,0.47795032]
[1741840684565,0.141439,83354.0,83350.0,0.1438149]
[1741840684867,0.1199961,83351.0,83350.0,0.2638125]
[1741840685065,0.14991656,83351.0,83350.0,0.2638125]
[1741840685360,0.13136506,83351.0,83350.0,0.2638125]
[1741840685567,0.14269764,83351.0,83350.0,0.2638125]
[1741840685767,0.14269764,83351.0,83350.0,0.1438149]
[1741840688163,0.41509764,83351.0,83350.0,0.0570634]
[1741840688354,0.1200163,83337.0,83336.0,0.42879859]
[1741840688560,0.14271784,83337.0,83336.0,0.54881629]
[1741840689270,0.18601784,83337.0,83336.0,0.1200177]
[1741840689567,0.1200264,83330.0,83329.0,0.12182657]
[1741840689760,0.01146325,83330.0,83329.0,0.12182657]
[1741840689960,0.14282223,83330.0,83329.0,0.12182657]
[1741840690171,0.14282223,83330.0,83329.0,0.21352657]
[1741840690365,0.14271346,83330.0,83329.0,0.21352657]
[1741840690571,0.01133258,83330.0,83329.0,0.27352657]
[1741840690960,0.01133258,83336.0,83335.0,0.1200191]
[1741840691156,0.02247852,83336.0,83335.0,0.3827391]
[1741840691357,0.01133258,83336.0,83335.0,0.5044391]
[1741840691567,0.12018602,83345.0,83344.0,0.1200062]
[1741840691760,0.1800303,83338.0,83337.0,0.1200159]
[1741840691957,0.0600088,83338.0,83337.0,0.1200159]
[1741840692462,0.01164951,83345.0,83344.0,0.1200062]
[1741840692667,0.04287992,83345.0,83344.0,0.1200062]
[1741840692864,0.17497804,83345.0,83344.0,0.1200062]
[1741840693071,0.17497804,83345.0,83336.0,0.120011]
[1741840693072,0.1800318,83337.0,83336.0,0.120011]
[1741840693265,0.1800318,83337.0,83336.0,0.130011]
[1741840693569,0.1800318,83337.0,83336.0,0.2500237]
[1741840694069,0.1800386,83333.0,83332.0,0.1800275]
[1741840694368,0.0600122,83333.0,83332.0,0.0600098]
[1741840695378,0.1200189,83336.0,83335.0,0.1200177]
[1741840695570,0.1027085,83337.0,83332.0,0.0600098]
[1741840695571,0.0427,83337.0,83332.0,0.0600098]
[1741840695870,0.2227293,83337.0,83336.0,0.1200177]
[1741840697862,0.14207163,83340.0,83339.0,0.1200134]